bitfinex/quotes_SOLUSD_20251212
["timestamp","ask_amount","ask_price","bid_price","bid_amount"]
[1765555185139,13.0470912,133.76,133.73,7.48773409]
[1765555185334,13.0470912,133.76,133.65,19.36516207]
[1765555185335,75.0,133.74,133.65,19.36516207]
[1765555185637,75.0,133.71,133.66,7.48165131]
[1765555185871,75.0,133.71,133.64,8.14267959]
[1765555186041,82.48773409,133.69,133.57,8.84]
[1765555186233,82.48773409,133.67,133.57,0.66]
[1765555186443,75.0,133.65,133.58,14.97371867]
[1765555186749,83.9,133.66,133.58,7.48598458]
[1765555186957,8.7,133.66,133.62,7.48773409]
[1765555187282,83.7,133.66,133.6,7.48773409]
[1765555187570,83.7,133.66,133.6,14.97229513]
[1765555187942,0.5,133.66,133.6,8.14456104]
[1765555188161,0.5,133.66,133.6,26.19713589]
[1765555188475,75.5,133.66,133.61,12.16633554]
[1765555188846,75.5,133.66,133.6,7.48456104]
[1765555189060,75.5,133.66,133.59,12.16633554]
[1765555189061,75.0,133.65,133.59,12.16633554]
[1765555189263,75.7,133.65,133.6,7.48501856]
[1765555189752,0.7,133.65,133.6,18.9913541]
[1765555189949,162.00633554,133.66,133.62,18.99024513]
[1765555189950,0.5,133.66,133.62,18.99024513]
[1765555190177,0.5,133.66,133.63,11.50633554]
[1765555190349,0.5,133.66,133.65,11.50633554]
[1765555190559,150.0,133.73,133.65,12.21633554]
[1765555190867,75.72,133.74,133.66,0.71]
[1765555191067,75.72,133.74,133.69,11.50633554]
[1765555191382,75.72,133.74,133.68,11.50633554]
[1765555191383,75.72,133.73,133.68,11.50633554]
[1765555191674,75.72,133.73,133.68,7.48035579]
[1765555191872,0.72,133.72,133.69,11.50633554]
[1765555192181,0.72,133.72,133.68,7.48035579]
[1765555192381,11.50633554,133.69,133.63,18.98923362]
[1765555192597,150.0,133.68,133.62,18.99016974]
[1765555192749,75.0,133.68,133.61,18.71012876]
[1765555192949,8.2,133.7,133.65,11.50633554]
[1765555192950,83.92,133.7,133.65,11.50633554]
[1765555193172,83.92,133.7,133.67,7.48103024]
[1765555193376,83.92,133.7,133.67,18.98736578]
[1765555193575,8.2,133.7,133.68,18.98679851]
[1765555193781,75.0,133.74,133.69,11.50633554]
[1765555193978,75.0,133.74,133.7,11.50633554]
[1765555194488,75.0,133.72,133.67,7.48102911]
[1765555194853,0.72,133.71,133.67,7.48102911]
[1765555195147,0.72,133.71,133.67,18.98736465]
[1765555195356,75.0,133.67,133.59,7.48559023]
[1765555195654,75.0,133.66,133.59,26.19956582]
[1765555195856,75.0,133.66,133.61,11.50633554]
[1765555196055,0.72,133.65,133.6,11.50633554]
[1765555196457,11.50633554,133.64,133.59,7.48559023]
[1765555196660,161.50633554,133.64,133.58,7.48604037]
[1765555196867,162.22633554,133.64,133.58,7.48604037]
[1765555197154,75.0,133.64,133.59,0.71]
[1765555197356,75.0,133.64,133.6,11.50633554]
[1765555197559,0.5,133.63,133.58,26.20141692]
[1765555197757,0.5,133.63,133.6,37.70338029]
[1765555198083,0.5,133.63,133.6,18.99080544]
[1765555198253,0.5,133.63,133.62,11.50633554]
[1765555198454,0.5,133.63,133.6,26.90704475]
[1765555198882,0.5,133.63,133.62,11.50633554]
[1765555199192,0.5,133.63,133.6,26.19704475]
[1765555199486,1.22,133.63,133.59,7.48545949]
[1765555199687,1.22,133.63,133.55,0.71]
[1765555199867,0.5,133.63,133.59,11.50633554]
[1765555200388,0.5,133.63,133.54,0.28432314]
[1765555200389,75.5,133.63,133.54,0.28432314]
[1765555200588,75.0,133.6,133.54,0.28432314]
[1765555200801,11.50633554,133.59,133.54,0.28432314]
[1765555200963,75.0,133.6,133.55,11.50633554]
[1765555201292,75.0,133.6,133.54,0.28432314]
[1765555201583,75.0,133.57,133.54,0.28432314]
[1765555202085,75.0,133.55,133.54,0.28432314]
[1765555202388,9.52994492,133.56,133.54,0.28432314]
[1765555202685,8.80994492,133.56,133.54,0.28432314]
[1765555202890,8.80994492,133.56,133.54,0.99432314]
[1765555203385,8.80994492,133.56,133.51,0.71]
[1765555203576,8.80994492,133.56,133.5,0.28432314]
[1765555203577,11.50633554,133.53,133.47,0.1]
[1765555203887,83.80994492,133.48,133.47,0.1]
[1765555204065,8.80994492,133.45,133.34,0.71]
[1765555204387,75.0,133.43,133.4,11.50633554]
[1765555204556,75.0,133.48,133.42,11.50633554]
[1765555204759,75.0,133.49,133.41,0.71]
[1765555205067,75.0,133.48,133.44,11.50633554]
[1765555205371,83.2,133.54,133.47,11.50633554]
[1765555205679,83.2,133.58,133.48,26.50547986]
[1765555205881,150.0,133.54,133.45,13.7570912]
[1765555206189,75.0,133.52,133.46,7.49273721]
[1765555206391,75.0,133.52,133.47,7.49206079]
[1765555206572,83.80994492,133.45,133.38,8.20726456]
[1765555206769,83.80994492,133.45,133.35,18.74752976]
[1765555206770,75.0,133.43,133.35,18.74752976]
[1765555206992,150.0,133.43,133.37,7.49781278]
[1765555207157,75.0,133.43,133.39,7.49679397]
[1765555207359,9.52994492,133.42,133.34,18.74830152]
[1765555207690,75.0,133.42,133.36,26.24386215]
[1765555207862,75.0,133.43,133.39,11.54522693]
[1765555208186,13.0470912,133.41,133.32,0.71]
[1765555208390,150.72,133.41,133.35,7.49878408]
[1765555208565,167.72994492,133.41,133.32,30.29642018]
[1765555208902,75.0,133.4,133.35,7.49905295]
[1765555209364,75.0,133.4,133.34,7.49954773]
[1765555209566,75.0,133.38,133.33,7.49974953]
[1765555209783,75.0,133.38,133.35,11.54522693]
[1765555209983,75.0,133.38,133.37,7.52322568]
[1765555210299,75.0,133.45,133.37,28.09354256]
[1765555210467,75.0,133.45,133.43,7.52322568]
[1765555210789,75.0,133.42,133.38,7.52322568]
[1765555210988,75.0,133.42,133.34,8.18]
[1765555210989,75.68,133.44,133.4,7.52322568]
[1765555211287,7.52322568,133.46,133.42,7.52322568]
[1765555211288,75.0,133.45,133.42,7.52322568]
[1765555211494,75.0,133.43,133.35,0.71]
[1765555211660,75.0,133.43,133.37,7.49783112]
[1765555211866,91.3331706,133.41,133.32,0.71]
[1765555212065,75.0,133.39,133.36,7.52322568]
[1765555212379,83.80994492,133.41,133.36,7.52322568]
[1765555212582,75.0,133.37,133.29,0.71]
[1765555212887,75.0,133.35,133.29,0.71]
[1765555213074,75.0,133.35,133.3,7.50187546]
[1765555213270,150.0,133.33,133.27,15.02633112]
[1765555213468,75.0,133.33,133.3,7.52322568]
[1765555213666,8.2,133.35,133.26,0.71]
[1765555213893,75.0,133.34,133.27,7.50356419]
[1765555214193,8.80994492,133.3,133.24,7.52322568]
[1765555214395,75.0,133.29,133.26,7.52322568]
[1765555214772,75.0,133.29,133.25,8.23322568]
[1765555214973,75.68,133.31,133.27,7.52322568]
[1765555215169,150.68,133.31,133.26,7.50412726]
[1765555215485,75.0,133.26,133.19,0.71]
[1765555215687,75.0,133.26,133.22,7.50627364]
[1765555216497,75.0,133.32,133.25,7.52322568]
[1765555216817,82.52322568,133.28,133.22,26.27222469]
[1765555216990,0.5,133.26,133.22,7.50627364]
[1765555217187,75.5,133.26,133.22,7.50627364]
[1765555217389,0.5,133.26,133.25,7.52322568]
[1765555217588,75.0,133.34,133.25,20.57031688]
[1765555217791,75.0,133.34,133.32,7.52322568]
[1765555218075,83.80994492,133.37,133.26,18.76023449]
[1765555218076,75.0,133.32,133.26,18.76023449]
[1765555218276,75.0,133.32,133.24,0.7]
[1765555218591,75.0,133.35,133.31,7.52322568]
[1765555218790,75.0,133.35,133.34,7.52322568]
[1765555218994,84.48994492,133.38,133.34,7.52322568]
[1765555218995,75.0,133.37,133.34,7.52322568]
[1765555219194,8.80994492,133.36,133.31,7.50120472]
[1765555219479,75.0,133.35,133.31,7.5011758]
[1765555219810,75.68,133.37,133.31,0.7]
[1765555219987,75.0,133.39,133.34,26.24844567]
[1765555220190,75.0,133.41,133.38,7.52322568]
[1765555220379,75.0,133.46,133.4,7.52322568]
[1765555220581,7.48995215,133.52,133.38,7.52322568]
[1765555220582,75.0,133.48,133.45,7.52322568]
[1765555220883,0.99999999,133.58,133.47,7.52322568]
[1765555220884,75.0,133.5,133.47,7.52322568]
[1765555221087,75.0,133.54,133.46,13.0470912]
[1765555221303,75.0,133.54,133.52,7.52322568]
[1765555221505,75.0,133.55,133.52,7.52322568]
[1765555221723,150.0,133.55,133.47,8.22322568]
[1765555221883,75.0,133.55,133.54,13.17039981]
[1765555222083,75.0,133.6,133.54,13.17039981]
[1765555222320,75.0,133.62,133.59,13.17039981]
[1765555222483,75.0,133.64,133.61,13.17039981]
[1765555222697,75.0,133.64,133.55,0.98432314]
[1765555222888,75.0,133.64,133.55,0.7]
[1765555223219,13.17039981,133.68,133.63,13.17039981]
[1765555223220,75.0,133.68,133.63,13.17039981]
[1765555223402,75.0,133.72,133.67,13.17039981]
[1765555223711,75.0,133.76,133.71,13.17039981]
[1765555223892,75.0,133.78,133.72,26.17409512]
[1765555224090,75.0,133.78,133.75,13.17039981]
[1765555224415,150.0,133.78,133.76,0.7]
[1765555224624,0.68,133.82,133.77,13.17039981]
[1765555224796,13.85039981,133.82,133.73,0.28432314]
[1765555225124,75.0,133.78,133.72,7.47831289]
[1765555225342,75.0,133.81,133.71,0.7]
[1765555225343,75.0,133.74,133.71,13.87039981]
[1765555225544,75.0,133.76,133.7,13.17039981]
[1765555225696,75.0,133.78,133.75,13.17039981]
[1765555226032,75.0,133.78,133.74,13.17039981]
[1765555226215,75.0,133.76,133.73,7.47760309]
[1765555226394,75.0,133.76,133.67,13.0470912]
[1765555226719,75.0,133.78,133.73,13.17039981]
[1765555226894,75.0,133.72,133.68,7.48055056]
[1765555227096,75.0,133.74,133.7,13.17039981]
[1765555227321,75.0,133.74,133.68,26.18192698]
[1765555227697,8.80994492,133.76,133.68,26.18192698]
[1765555227698,75.0,133.76,133.71,13.17039981]
[1765555227903,75.0,133.78,133.75,13.17039981]
[1765555228120,88.17039981,133.78,133.72,20.64868404]
[1765555228419,75.0,133.75,133.72,13.17039981]
[1765555228721,75.0,133.75,133.68,19.40110387]
[1765555228896,75.0,133.75,133.74,13.17039981]
[1765555229093,75.0,133.77,133.74,13.17039981]
[1765555229317,75.0,133.77,133.75,13.17039981]
[1765555229525,8.80994492,133.79,133.74,0.7]
[1765555229526,75.0,133.79,133.74,0.7]
[1765555229727,75.0,133.77,133.71,0.7]
[1765555229907,75.0,133.77,133.71,13.17039981]
[1765555229908,75.0,133.75,133.71,13.17039981]
[1765555230233,75.0,133.73,133.69,13.17039981]
[1765555230400,75.0,133.73,133.68,7.47999322]
[1765555230401,75.68,133.73,133.68,7.47999322]
[1765555230601,75.0,133.73,133.69,7.47991605]
[1765555230797,75.0,133.73,133.67,7.48067179]
[1765555230996,75.0,133.71,133.66,13.17039981]
[1765555231215,75.0,133.71,133.63,26.88742733]
[1765555231216,96.98034473,133.69,133.62,0.7]
[1765555231420,96.98034473,133.69,133.6,18.71155496]
[1765555231421,75.0,133.67,133.64,13.17039981]
[1765555231725,8.80994492,133.68,133.62,13.17039981]
[1765555231907,75.0,133.67,133.63,20.65374549]
[1765555232228,75.0,133.65,133.61,13.17039981]
[1765555232406,75.0,133.65,133.59,7.48503311]
[1765555232613,150.68,133.65,133.58,13.17039981]
[1765555232923,75.0,133.62,133.56,13.17039981]
[1765555233104,75.0,133.63,133.53,7.48850139]
[1765555233105,75.0,133.6,133.53,7.48850139]
[1765555233305,21.98034473,133.61,133.53,7.48850139]
[1765555233306,75.0,133.57,133.53,7.48850139]
[1765555233516,88.17039981,133.59,133.54,0.7]
[1765555233517,75.0,133.59,133.54,0.7]
[1765555233704,75.68,133.61,133.57,13.17039981]
[1765555233905,75.0,133.59,133.54,13.17039981]
[1765555234113,75.0,133.59,133.51,0.7]
[1765555234323,75.0,133.59,133.55,13.17039981]
[1765555234528,88.17039981,133.57,133.48,7.49175906]
[1765555234730,88.17039981,133.56,133.48,7.49175906]
[1765555234931,75.0,133.54,133.48,7.49175906]
[1765555235112,75.0,133.54,133.51,13.17039981]
[1765555235316,75.0,133.56,133.52,13.17039981]
[1765555235512,75.0,133.58,133.49,13.7470912]
[1765555235795,8.2,133.61,133.57,13.17039981]
[1765555235923,75.0,133.66,133.6,13.17039981]
[1765555236232,75.0,133.64,133.61,13.17039981]
[1765555236410,75.0,133.64,133.6,13.17039981]
[1765555236609,75.0,133.64,133.61,13.17039981]
[1765555236806,0.68,133.65,133.62,13.17039981]
[1765555237007,75.0,133.66,133.63,13.17039981]
[1765555237208,75.0,133.68,133.59,0.98432314]
[1765555237512,75.0,133.68,133.65,13.17039981]
[1765555237720,75.0,133.68,133.62,0.7]
[1765555237942,75.0,133.68,133.63,7.48334954]
[1765555238234,75.0,133.71,133.67,13.17039981]
[1765555238535,75.0,133.71,133.69,13.17039981]
[1765555238734,75.0,133.71,133.64,0.7]
[1765555238932,75.0,133.71,133.69,13.17039981]
[1765555239312,75.0,133.75,133.7,13.17039981]
[1765555239526,75.0,133.75,133.73,13.17039981]
[1765555239749,75.0,133.75,133.72,13.17039981]
[1765555239910,0.68,133.74,133.7,7.47938197]
[1765555240114,0.68,133.74,133.66,13.0470912]
[1765555240115,75.0,133.73,133.69,13.17039981]
[1765555240422,75.0,133.73,133.68,20.65041114]
[1765555240607,75.0,133.73,133.69,7.47996886]
[1765555240815,75.0,133.73,133.7,13.17039981]
[1765555241028,8.2,133.75,133.72,20.6487127]
[1765555241029,83.2,133.75,133.72,20.6487127]
[1765555241527,83.2,133.75,133.71,7.47877969]
[1765555241714,75.0,133.73,133.7,13.17039981]
[1765555241914,83.2,133.75,133.72,7.47830816]
[1765555242546,83.88,133.75,133.71,13.17039981]
[1765555242750,75.0,133.73,133.7,7.47941217]
[1765555242949,88.17039981,133.73,133.68,7.48019677]
[1765555243281,75.68,133.73,133.69,7.47985378]
[1765555243429,75.0,133.73,133.71,7.47879472]
[1765555243746,75.0,133.73,133.71,7.47877489]
[1765555244156,83.2,133.75,133.71,7.47877489]
[1765555244472,83.2,133.75,133.71,20.6491747]
[1765555244630,0.68,133.74,133.69,13.17039981]
[1765555244951,88.17039981,133.73,133.65,0.7]
[1765555245166,75.0,133.7,133.66,7.48165074]
[1765555245336,8.80994492,133.69,133.59,45.60776405]
[1765555245523,75.0,133.7,133.65,13.17039981]
[1765555245717,75.0,133.7,133.62,26.19368357]
[1765555245951,88.85039981,133.7,133.62,26.19368357]
[1765555246139,88.17039981,133.67,133.62,7.48390959]
[1765555246340,75.0,133.65,133.61,7.48408017]
[1765555246543,75.0,133.67,133.63,13.17039981]
[1765555246544,75.68,133.67,133.63,13.17039981]
[1765555246857,75.0,133.69,133.62,26.19360185]
[1765555247055,88.17039981,133.67,133.62,7.48382787]
[1765555247262,75.0,133.67,133.63,13.17039981]
[1765555247637,75.0,133.67,133.62,39.36400166]
[1765555247839,75.0,133.65,133.57,7.48671108]
[1765555248062,75.0,133.65,133.62,13.15331114]
[1765555248238,75.0,133.65,133.61,13.15331114]
[1765555248440,75.0,133.67,133.63,13.15331114]
[1765555248634,75.0,133.67,133.64,13.15331114]
[1765555248833,83.2,133.7,133.66,13.15331114]
[1765555249059,0.68,133.69,133.63,13.15331114]
[1765555249236,75.0,133.68,133.64,13.15331114]
[1765555249440,75.68,133.68,133.64,13.15331114]
[1765555249849,83.2,133.7,133.66,7.4816699]
[1765555250051,103.83282398,133.7,133.65,7.48210221]
[1765555250372,75.0,133.66,133.62,7.48380975]
[1765555250588,75.0,133.66,133.6,31.86577695]
[1765555250746,75.68,133.66,133.6,31.86577695]
[1765555250949,88.83331114,133.66,133.61,7.48423233]
[1765555251346,0.68,133.65,133.62,7.48389997]
[1765555251643,0.68,133.65,133.58,7.48614577]
[1765555251644,75.0,133.62,133.58,7.48614577]
[1765555251973,88.15331114,133.63,133.58,7.4856037]
[1765555252274,75.0,133.61,133.57,7.48664128]
[1765555252568,75.0,133.61,133.57,18.71559665]
[1765555252735,0.68,133.61,133.53,0.68]
[1765555252943,75.68,133.62,133.58,7.48570129]
[1765555253164,75.68,133.62,133.57,20.63987051]
[1765555253358,75.0,133.6,133.55,13.15331114]
[1765555253560,75.68,133.6,133.55,13.15331114]
[1765555253867,75.0,133.62,133.59,13.15331114]
[1765555254376,75.0,133.64,133.6,20.63778558]
[1765555254541,75.0,133.64,133.61,13.15331114]
[1765555254747,75.68,133.66,133.62,13.15331114]
[1765555254982,75.0,133.66,133.62,13.15331114]
[1765555255340,75.68,133.68,133.64,13.15331114]
[1765555255660,0.99999999,133.76,133.6,26.19704929]
[1765555255661,75.0,133.72,133.67,13.15331114]
[1765555255974,75.0,133.72,133.66,18.70315454]
[1765555256267,75.0,133.72,133.68,7.48053006]
[1765555256571,75.0,133.72,133.68,20.6338412]
[1765555256760,0.68,133.71,133.68,20.6338412]
[1765555256967,0.68,133.71,133.65,18.70521341]
[1765555256968,83.80994492,133.7,133.65,18.70521341]
[1765555257166,83.80994492,133.7,133.66,7.48126494]
[1765555257362,0.68,133.69,133.65,13.15331114]
[1765555257682,84.48994492,133.7,133.66,13.15331114]
[1765555257854,75.0,133.72,133.68,13.15331114]
[1765555258054,75.0,133.72,133.68,39.33520426]
[1765555258255,8.2,133.73,133.71,13.15331114]
[1765555258560,8.2,133.73,133.68,7.4805167]
[1765555258561,88.83331114,133.72,133.68,7.4805167]
[1765555258877,75.0,133.69,133.64,18.70671436]
[1765555259080,75.0,133.69,133.66,13.15331114]
[1765555259253,75.0,133.69,133.65,13.15331114]
[1765555259748,75.68,133.69,133.65,7.48218456]
[1765555259949,75.0,133.71,133.68,7.48055056]
[1765555260163,83.15910267,133.71,133.64,13.15331114]
[1765555260366,75.0,133.67,133.59,0.68]
[1765555260574,13.15331114,133.64,133.57,13.15331114]
[1765555260867,88.15331114,133.61,133.54,18.71999632]
[1765555261070,75.0,133.59,133.52,0.68]
[1765555261386,75.0,133.59,133.53,7.48895379]
[1765555261580,8.2,133.62,133.58,13.15331114]
[1765555261877,8.2,133.62,133.54,0.82216157]
[1765555262050,8.2,133.62,133.5,0.99999999]
[1765555262051,75.0,133.6,133.56,13.15331114]
[1765555262252,75.0,133.6,133.55,39.36072409]
[1765555262471,83.2,133.62,133.58,13.15331114]
[1765555262776,75.0,133.6,133.56,13.15331114]
[1765555263074,75.0,133.6,133.57,13.15331114]
[1765555263378,8.2,133.62,133.59,13.15331114]
[1765555263556,75.0,133.59,133.55,7.48783227]
[1765555263754,75.0,133.59,133.55,20.64114341]
[1765555264070,83.2,133.62,133.58,13.15331114]
[1765555264373,8.2,133.62,133.58,13.15331114]
[1765555264589,8.2,133.62,133.59,13.15331114]
[1765555264751,8.2,133.62,133.6,13.15331114]
[1765555264954,8.2,133.62,133.53,26.21133827]
[1765555264955,150.0,133.6,133.53,26.21133827]
[1765555265154,88.15331114,133.57,133.52,7.48939534]
[1765555265355,75.0,133.57,133.52,7.48939534]
[1765555265559,75.0,133.58,133.52,20.64270648]
[1765555265834,75.0,133.57,133.52,20.64270648]
[1765555266077,75.0,133.55,133.51,7.49007564]
[1765555266268,75.0,133.55,133.5,7.49046518]
[1765555266576,79.71689181,133.54,133.5,20.64385599]
[1765555266878,88.15331114,133.54,133.5,7.49054485]
[1765555267120,83.80994492,133.56,133.51,0.68]
[1765555267121,75.0,133.56,133.51,0.68]
[1765555267252,5.79632509,133.6,133.55,13.15331114]
[1765555267447,75.0,133.59,133.57,13.15331114]
[1765555267658,75.0,133.61,133.54,0.68]
[1765555267947,75.0,133.65,133.61,7.48446972]
[1765555268149,83.2,133.69,133.64,13.15331114]
[1765555268355,4.71443078,133.68,133.62,0.96432314]
[1765555268650,4.71443078,133.7,133.62,0.96432314]
[1765555268854,75.0,133.69,133.62,0.68]
[1765555269060,4.71443078,133.68,133.66,13.15331114]
[1765555269273,156.47632509,133.73,133.67,13.15331114]
[1765555269578,156.47632509,133.73,133.7,13.15331114]
[1765555269579,4.71761275,133.72,133.7,13.15331114]
[1765555269949,8.2,133.74,133.69,26.17996858]
[1765555269950,12.91761275,133.74,133.69,26.17996858]
[1765555270151,12.91761275,133.74,133.72,13.15331114]
[1765555270350,4.71761275,133.74,133.69,26.85996858]
[1765555270576,150.68,133.77,133.73,13.15331114]
[1765555270782,150.68,133.77,133.72,13.15331114]
[1765555270783,75.0,133.75,133.72,13.15331114]
[1765555270957,4.72335357,133.74,133.69,26.17996858]
[1765555271274,75.0,133.75,133.73,13.15331114]
[1765555271454,75.0,133.75,133.74,13.15331114]
[1765555271770,75.0,133.77,133.74,13.15331114]
[1765555272088,4.72454924,133.76,133.75,13.15331114]
[1765555272245,4.72454924,133.76,133.75,20.62994665]
[1765555272451,8.2,133.78,133.75,7.47663551]
[1765555272452,12.92567088,133.78,133.75,7.47663551]
[1765555272652,8.2,133.78,133.76,13.15331114]
[1765555272968,8.2,133.78,133.77,13.15331114]
[1765555273171,8.2,133.78,133.75,7.47663551]
[1765555273399,75.68,133.77,133.72,7.47823547]
[1765555273578,75.68,133.77,133.74,13.15331114]
[1765555273765,75.0,133.77,133.74,7.47716047]
[1765555273956,75.0,133.77,133.75,13.15331114]
[1765555274388,75.0,133.77,133.76,13.15331114]
[1765555274592,75.0,133.77,133.74,13.15331114]
[1765555275094,150.0,133.72,133.62,0.68]
[1765555275257,150.0,133.7,133.64,20.63558846]
[1765555275565,150.0,133.68,133.63,7.48325351]
[1765555275753,75.0,133.68,133.66,13.15331114]
[1765555275954,83.2,133.71,133.67,20.63442133]
[1765555276171,83.2,133.71,133.68,13.15331114]
[1765555276452,83.2,133.71,133.69,13.15331114]
[1765555276782,75.68,133.72,133.67,7.48111019]
[1765555276783,75.0,133.75,133.7,13.15331114]
[1765555276962,0.5,133.7,133.67,26.18381875]
[1765555277156,0.5,133.7,133.69,13.15331114]
[1765555277785,0.5,133.7,133.68,13.15331114]
[1765555277962,0.5,133.7,133.57,9.17999999]
[1765555277963,75.0,133.69,133.62,0.68]
[1765555278158,75.0,133.68,133.63,7.48334954]
[1765555278351,75.0,133.68,133.65,13.15331114]
[1765555278664,75.68,133.68,133.65,13.15331114]
[1765555279173,75.68,133.68,133.63,7.48334954]
[1765555279576,75.0,133.67,133.62,7.48381341]
[1765555279761,75.0,133.67,133.65,13.15331114]
[1765555280159,82.48121485,133.67,133.63,7.48330173]
[1765555280375,82.48118527,133.67,133.63,7.48325071]
[1765555280586,75.0,133.68,133.63,18.70818904]
[1765555280933,0.5,133.7,133.67,13.15331114]
[1765555281072,0.5,133.7,133.69,13.15331114]
[1765555281458,0.5,133.7,133.66,0.7]
[1765555281693,0.5,133.7,133.69,13.15331114]
[1765555281994,83.2,133.76,133.69,13.15331114]
[1765555282175,8.2,133.76,133.75,13.15331114]
[1765555282372,8.2,133.76,133.7,26.87801046]
[1765555282556,8.2,133.76,133.75,13.15331114]
[1765555282763,83.2,133.76,133.75,13.15331114]
[1765555283267,8.2,133.76,133.7,26.87801046]
[1765555283586,150.0,133.76,133.73,13.15331114]
[1765555283766,0.5,133.75,133.7,7.47943156]
[1765555283976,75.0,133.78,133.74,11.4809159]
[1765555284156,75.0,133.78,133.74,7.47693364]
[1765555284502,83.15499616,133.78,133.71,0.7]
[1765555284700,158.15499616,133.78,133.75,11.4809159]
[1765555285194,158.15499616,133.78,133.74,11.4809159]
[1765555285195,75.0,133.76,133.74,11.4809159]
[1765555285400,150.0,133.76,133.71,11.4809159]
[1765555285570,150.0,133.76,133.67,18.7022933]
[1765555285571,0.68,133.75,133.7,7.47900076]
[1765555285769,0.68,133.75,133.71,11.4809159]
[1765555285770,75.0,133.74,133.71,11.4809159]
[1765555285974,150.0,133.74,133.69,7.47983247]
[1765555286206,6.38775368,133.73,133.7,11.49229867]
[1765555286378,158.15731,133.74,133.71,11.49229867]
[1765555286578,75.0,133.74,133.68,26.88192698]
[1765555286777,75.0,133.74,133.72,11.49229867]
[1765555287013,75.0,133.74,133.68,8.18055056]
[1765555287014,157.47735951,133.74,133.68,8.18055056]
[1765555287173,158.15735951,133.74,133.7,11.49229867]
[1765555287693,158.15735951,133.74,133.71,11.49229867]
[1765555287991,150.0,133.72,133.66,7.4812762]
[1765555288295,157.47834936,133.72,133.69,11.49229867]
[1765555288679,0.5,133.71,133.69,11.49229867]
[1765555288878,1.18,133.71,133.68,11.49229867]
[1765555289078,0.5,133.71,133.7,11.49229867]
[1765555289418,0.5,133.71,133.69,11.49229867]
[1765555289902,8.2,133.75,133.66,7.4816699]
[1765555289903,75.0,133.76,133.7,12.19229867]
[1765555290104,75.0,133.78,133.75,11.49229867]
[1765555290402,83.39347144,133.81,133.77,11.49229867]
[1765555290586,83.39347144,133.81,133.8,11.49229867]
[1765555290785,83.39347144,133.81,133.79,11.49229867]
[1765555290985,83.39347144,133.81,133.72,0.7]
[1765555290986,75.0,133.79,133.72,0.7]
[1765555291188,75.0,133.79,133.78,11.49229867]
[1765555291702,102.69315245,133.81,133.78,19.66724002]
[1765555291703,0.2,133.81,133.78,19.66724002]
[1765555291912,0.2,133.81,133.8,11.49229867]
[1765555292108,0.2,133.89,133.81,13.0470912]
[1765555292324,0.2,133.89,133.88,11.49229867]
[1765555292505,0.2,133.9,133.88,11.49229867]
[1765555292706,0.2,133.9,133.89,12.47662181]
[1765555292908,0.2,133.9,133.89,0.7]
[1765555293212,0.2,133.91,133.89,12.47662181]
[1765555293411,0.2,133.92,133.9,18.96055856]
[1765555293599,0.2,133.92,133.91,11.49229867]
[1765555293795,0.2,133.92,133.91,12.19229867]
[1765555294190,0.2,133.96,133.91,12.47662181]
[1765555294388,0.2,133.96,133.95,11.49229867]
[1765555294586,0.2,133.96,133.93,13.7470912]
[1765555294791,0.2,133.96,133.95,11.49229867]
[1765555295018,75.0,134.03,133.95,11.49229867]
[1765555295228,75.0,134.05,134.02,11.49229867]
[1765555295395,75.0,134.05,134.04,11.49229867]
[1765555295717,75.0,134.03,133.98,7.46360653]
[1765555295952,75.0,134.03,133.99,18.95541187]
[1765555296091,75.0,134.03,133.95,0.28432314]
[1765555296292,0.72,134.04,134.02,11.49229867]
[1765555296603,75.72,134.04,133.98,7.46376221]